[Event "Championnat du monde jeunes U12"]
[Date "2024.11.26"]
[White "Ambartsumian, Tyhran"]
[Black "Mamikonyan, Artem T"]
[WhiteElo "2123"]
[BlackElo "1918"]
[Round "11.7"]
[Result "1/2-1/2"]
[TimeControl "5400+30"]

1. e4 {[%clk 1:29:35]} 1... c6 {[%clk 1:30:53]} 2. d4 {[%clk 1:30:01]} 2... d5
{[%clk 1:31:18]} 3. exd5 {[%clk 1:30:26]} 3... cxd5 {[%clk 1:31:43]} 4. Bd3
{[%clk 1:30:53]} 4... Nc6 {[%clk 1:32:06]} 5. c3 {[%clk 1:31:19]} 5... Nf6
{[%clk 1:32:29]} 6. h3 {[%clk 1:31:45]} 6... e5 {[%clk 1:32:43]} 7. dxe5 {[%clk
1:32:07]} 7... Nxe5 {[%clk 1:33:08]} 8. Qe2 {[%clk 1:32:27]} 8... Ne4 {[%clk
1:33:24]} 9. Bb5+ {[%clk 1:32:49]} 9... Bd7 {[%clk 1:33:08]} 10. Nf3 {[%clk
1:33:15]} 10... Bxb5 {[%clk 1:20:45]} 11. Qxb5+ {[%clk 1:33:33]} 11... Qd7
{[%clk 1:21:07]} 12. Qxd7+ {[%clk 1:33:59]} 12... Nxd7 {[%clk 1:21:30]} 13. O-O
{[%clk 1:34:26]} 13... Bc5 {[%clk 1:21:42]} 14. Nbd2 {[%clk 1:31:15]} 14... O-O
{[%clk 1:22:01]} 15. Nb3 {[%clk 1:31:33]} 15... Bb6 {[%clk 1:21:36]} 16. Bf4
{[%clk 1:31:35]} 16... Ndc5 {[%clk 1:13:24]} 17. Nxc5 {[%clk 1:31:41]} 17...
Bxc5 {[%clk 1:13:29]} 18. Rad1 {[%clk 1:31:40]} 18... Rfd8 {[%clk 1:13:31]} 19.
Nd4 {[%clk 1:30:03]} 19... Rac8 {[%clk 1:09:14]} 20. Rfe1 {[%clk 1:25:24]} 20...
Bb6 {[%clk 0:48:17]} 21. Be3 {[%clk 1:15:59]} 21... Nd6 {[%clk 0:47:48]} 22. Nc2
{[%clk 1:16:00]} 22... Nc4 {[%clk 0:38:25]} 23. Bxb6 {[%clk 1:15:58]} 23... Nxb6
{[%clk 0:38:48]} 24. Re7 {[%clk 1:14:30]} 24... Rb8 {[%clk 0:39:09]} 25. Ne3
{[%clk 1:11:02]} 25... Kf8 {[%clk 0:37:55]} 26. Rc7 {[%clk 1:11:11]} 26... Rd6
{[%clk 0:37:09]} 27. c4 {[%clk 1:00:17]} 27... Rc6 {[%clk 0:37:30]} 28. Rxc6
{[%clk 1:00:32]} 28... bxc6 {[%clk 0:37:55]} 29. cxd5 {[%clk 1:01:00]} 29...
Nxd5 {[%clk 0:37:44]} 30. Nxd5 {[%clk 0:11:27]} 30... cxd5 {[%clk 0:38:07]} 31.
Rxd5 {[%clk 0:11:54]} 31... Rxb2 {[%clk 0:38:25]} 32. Ra5 {[%clk 0:12:23]} 32...
Rb7 {[%clk 0:38:36]} 33. g4 {[%clk 0:12:50]} 33... f6 {[%clk 0:37:00]} 34. Kg2
{[%clk 0:12:24]} 34... Kf7 {[%clk 0:36:35]} 35. f4 {[%clk 0:12:00]} 35... g6
{[%clk 0:32:15]} 36. Kf3 {[%clk 0:11:42]} 36... Ke6 {[%clk 0:32:19]} 37. Ra6+
{[%clk 0:12:02]} 37... Kf7 {[%clk 0:32:38]} 38. Ke3 {[%clk 0:05:45]} 38... f5
{[%clk 0:31:22]} 39. gxf5 {[%clk 0:04:16]} 39... gxf5 {[%clk 0:31:43]} 40. Kf3
{[%clk 0:04:26]} 40... Rb6 {[%clk 0:28:58]} 41. Rxa7+ {[%clk 0:03:29]} 41... Kg6
{[%clk 0:29:23]} 42. Kg3 {[%clk 0:02:57]} 42... Rb4 {[%clk 0:29:47]} 43. Ra6+
{[%clk 0:03:13]} 43... Kh5 {[%clk 0:30:05]} 44. Ra7 {[%clk 0:02:53]} 44... h6
{[%clk 0:29:44]} 45. Ra5 {[%clk 0:02:58]} 45... Kg6 {[%clk 0:30:04]} 46. Ra6+
{[%clk 0:02:56]} 46... Kh5 47. Ra5 Kg6 {[%clk 0:30:49]} 48. a4 {[%clk 0:01:32]}
48... Rc4 {[%clk 0:31:08]} 49. Ra8 {[%clk 0:01:23]} 49... Kh5 {[%clk 0:31:28]}
50. Rf8 {[%clk 0:00:33]} 50... Rc5 {[%clk 0:29:45]} 51. Rf6 {[%clk 0:00:41]}
51... Ra5 {[%clk 0:29:45]} 52. Kf3 {[%clk 0:00:54]} 52... Rxa4 {[%clk 0:29:46]}
53. Rxf5+ {[%clk 0:01:19]} 53... Kh4 {[%clk 0:30:12]} 54. Rf6 {[%clk 0:01:33]}
54... h5 {[%clk 0:30:33]} 55. Rh6 {[%clk 0:01:52]} 55... Rb4 {[%clk 0:30:54]}
56. Rg6 {[%clk 0:02:04]} 56... Kxh3 {[%clk 0:30:15]} 57. f5 {[%clk 0:02:30]}
57... Rg4 {[%clk 0:30:28]} 58. Ke3 {[%clk 0:01:57]} 58... Ra4 {[%clk 0:29:11]}
59. f6 {[%clk 0:02:26]} 59... Ra1 {[%clk 0:29:20]} 60. Kf4 {[%clk 0:01:51]}
60... h4 {[%clk 0:28:50]} 61. Kg5 {[%clk 0:01:32]} 61... Rf1 {[%clk 0:28:21]}
62. Kh6 {[%clk 0:01:23]} 62... Kh2 {[%clk 0:27:30]} 63. Kg7 {[%clk 0:01:45]}
63... h3 {[%clk 0:27:55]} 64. f7 {[%clk 0:02:12]} 64... Rxf7+ {[%clk 0:28:16]}
65. Kxf7 {[%clk 0:02:39]} 65... Kh1 {[%clk 0:28:39]} 66. Kf6 {[%clk 0:03:03]}
66... h2 {[%clk 0:29:04]} 67. Kg5 {[%clk 0:03:29]} 67... Kg2 {[%clk 0:28:17]}
68. Kf4+ {[%clk 0:03:54]} 68... Kf2 {[%clk 0:28:41]} 69. Rh6 {[%clk 0:04:18]}
69... Kg2 {[%clk 0:29:02]} 70. Rg6+ {[%clk 0:04:45]} 70... Kf2 {[%clk 0:29:25]}
71. Ra6 {[%clk 0:04:38]} 71... h1=Q {[%clk 0:29:47]} 72. Ra2+ {[%clk 0:05:05]}
72... Kf1 {[%clk 0:30:00]} 73. Ra1+ {[%clk 0:05:33]} 1/2-1/2

[Variant "Standard"]
[Site "Europe Echecs"]

[Event "Championnat du monde jeunes U12"]
[Date "2024.11.26"]
[White "Platonovs, Nikolajs"]
[Black "Birmenko, Nikolay"]
[WhiteElo "1969"]
[BlackElo "2084"]
[Round "11.8"]
[Result "0-1"]
[TimeControl "5400+30"]

1. e4 {[%clk 1:30:58]} 1... c5 {[%clk 1:30:51]} 2. Nf3 {[%clk 1:31:14]} 2... Nc6
{[%clk 1:31:15]} 3. d4 {[%clk 1:31:32]} 3... cxd4 {[%clk 1:31:37]} 4. Nxd4
{[%clk 1:31:24]} 4... Nf6 {[%clk 1:31:59]} 5. Nc3 {[%clk 1:31:48]} 5... e5
{[%clk 1:32:23]} 6. Ndb5 {[%clk 1:32:13]} 6... d6 {[%clk 1:32:48]} 7. Nd5 {[%clk
1:32:34]} 7... Nxd5 {[%clk 1:33:02]} 8. exd5 {[%clk 1:33:00]} 8... Nb8 {[%clk
1:33:26]} 9. a4 {[%clk 1:33:22]} 9... Be7 {[%clk 1:32:32]} 10. Be2 {[%clk
1:33:43]} 10... O-O {[%clk 1:32:21]} 11. O-O {[%clk 1:34:07]} 11... a6 {[%clk
1:30:23]} 12. Na3 {[%clk 1:34:29]} 12... Nd7 {[%clk 1:28:30]} 13. Nc4 {[%clk
1:34:17]} 13... b6 {[%clk 1:28:39]} 14. b4 {[%clk 1:32:42]} 14... Bb7 {[%clk
1:23:26]} 15. Be3 {[%clk 1:29:25]} 15... Qc7 {[%clk 1:20:13]} 16. Qd2 {[%clk
1:13:50]} 16... f5 {[%clk 1:16:42]} 17. f3 {[%clk 1:12:07]} 17... Bf6 {[%clk
1:10:12]} 18. Ra3 {[%clk 1:02:43]} 18... Rac8 {[%clk 1:06:45]} 19. Rb3 {[%clk
0:55:12]} 19... Kh8 {[%clk 1:03:32]} 20. Rc1 {[%clk 0:54:10]} 20... Rg8 {[%clk
0:59:41]} 21. a5 {[%clk 0:53:51]} 21... b5 {[%clk 0:59:52]} 22. Nb6 {[%clk
0:54:11]} 22... Nxb6 {[%clk 0:59:57]} 23. Bxb6 {[%clk 0:53:32]} 23... Qf7 {[%clk
0:59:43]} 24. Rd1 {[%clk 0:51:05]} 24... g5 {[%clk 0:56:04]} 25. Be3 {[%clk
0:50:04]} 25... h5 {[%clk 0:53:42]} 26. Kh1 {[%clk 0:48:10]} 26... Qg6 {[%clk
0:45:23]} 27. h3 {[%clk 0:42:44]} 27... f4 {[%clk 0:40:14]} 28. Bg1 {[%clk
0:42:59]} 28... e4 {[%clk 0:35:58]} 29. fxe4 {[%clk 0:35:23]} 29... Qxe4 {[%clk
0:33:43]} 30. Bd4 {[%clk 0:34:58]} 30... Qxd4 {[%clk 0:33:04]} 31. Qxd4 {[%clk
0:35:18]} 31... Bxd4 {[%clk 0:33:30]} 32. Rxd4 {[%clk 0:35:42]} 32... Rge8
{[%clk 0:33:06]} 33. Bxh5 {[%clk 0:27:42]} 33... Re1+ {[%clk 0:33:09]} 34. Kh2
{[%clk 0:28:11]} 34... Rxc2 {[%clk 0:33:13]} 35. Bd1 {[%clk 0:26:03]} 35... Rc4
{[%clk 0:30:27]} 36. Rd2 {[%clk 0:21:19]} 36... Ree4 {[%clk 0:30:15]} 37. Bf3
{[%clk 0:21:01]} 37... Re1 {[%clk 0:28:40]} 38. g3 {[%clk 0:18:21]} 38... fxg3+
{[%clk 0:28:19]} 39. Kxg3 {[%clk 0:18:40]} 39... Kg7 {[%clk 0:28:35]} 40. Kf2
{[%clk 0:17:39]} 40... Rcc1 {[%clk 0:27:58]} 41. Be2 {[%clk 0:15:40]} 41... Bc8
{[%clk 0:24:41]} 42. Rdd3 {[%clk 0:12:55]} 42... Rh1 {[%clk 0:22:56]} 43. Rg3
{[%clk 0:05:57]} 43... Rh2+ {[%clk 0:21:53]} 44. Rg2 {[%clk 0:06:21]} 44...
Rxg2+ {[%clk 0:21:50]} 45. Kxg2 {[%clk 0:06:45]} 45... Bf5 {[%clk 0:21:12]} 46.
Re3 {[%clk 0:06:13]} 46... Kf6 {[%clk 0:21:16]} 47. Bg4 {[%clk 0:04:48]} 47...
Rc2+ {[%clk 0:16:41]} 48. Kg3 {[%clk 0:03:56]} 48... Rd2 {[%clk 0:16:59]} 49.
Rf3 {[%clk 0:03:40]} 49... Rxd5 {[%clk 0:17:24]} 50. Bxf5 {[%clk 0:03:24]} 50...
Rxf5 {[%clk 0:17:49]} 51. Rc3 {[%clk 0:03:48]} 51... Rf4 {[%clk 0:15:44]} 52.
Rc6 {[%clk 0:04:06]} 52... Ke5 {[%clk 0:16:02]} 53. Rxa6 {[%clk 0:04:14]} 53...
Rxb4 {[%clk 0:16:26]} 54. Rb6 {[%clk 0:04:01]} 54... Kd5 {[%clk 0:14:58]} 55. a6
{[%clk 0:04:20]} 55... Kc5 {[%clk 0:15:24]} 56. Rb8 {[%clk 0:02:49]} 56... Ra4
{[%clk 0:15:39]} 57. Rc8+ {[%clk 0:02:54]} 57... Kb6 {[%clk 0:12:52]} 58. Rd8
{[%clk 0:03:12]} 58... Kc7 {[%clk 0:13:05]} 59. Rg8 {[%clk 0:02:09]} 59... Rxa6
{[%clk 0:13:22]} 60. Rxg5 {[%clk 0:02:33]} 60... b4 {[%clk 0:13:19]} 61. Kf4
{[%clk 0:00:54]} 61... Kc6 {[%clk 0:13:03]} 62. Ke4 {[%clk 0:00:58]} 62... Ra3
{[%clk 0:13:27]} 63. h4 {[%clk 0:00:32]} 63... Rh3 {[%clk 0:13:45]} 64. Rg8
{[%clk 0:00:32]} 64... Rxh4+ {[%clk 0:14:06]} 65. Kd3 {[%clk 0:00:56]} 65... Kc5
{[%clk 0:09:42]} 66. Rc8+ {[%clk 0:01:10]} 66... Kd5 {[%clk 0:10:07]} 67. Ra8
{[%clk 0:01:14]} 67... Rh3+ {[%clk 0:10:15]} 68. Kc2 {[%clk 0:01:36]} 68... Kc4
{[%clk 0:09:39]} 69. Rc8+ {[%clk 0:01:18]} 69... Kd4 {[%clk 0:10:05]} 70. Rg8
{[%clk 0:00:44]} 70... d5 {[%clk 0:09:50]} 71. Rg4+ {[%clk 0:01:09]} 71... Kc5
{[%clk 0:10:13]} 72. Rg8 {[%clk 0:01:10]} 72... Kc4 {[%clk 0:10:00]} 73. Rc8+
{[%clk 0:01:14]} 73... Kd4 {[%clk 0:10:27]} 74. Rg8 {[%clk 0:00:59]} 74... Rc3+
{[%clk 0:09:09]} 75. Kd2 {[%clk 0:01:01]} 75... Kc4 {[%clk 0:09:17]} 76. Rd8
{[%clk 0:00:40]} 76... Rh3 {[%clk 0:08:42]} 77. Kc2 {[%clk 0:00:37]} 77... Rh2+
{[%clk 0:09:06]} 78. Kc1 {[%clk 0:00:37]} 78... d4 {[%clk 0:09:07]} 79. Rc8+
{[%clk 0:00:36]} 79... Kb3 {[%clk 0:09:20]} 80. Rd8 {[%clk 0:00:54]} 80... Rc2+
{[%clk 0:09:35]} 81. Kb1 {[%clk 0:00:47]} 81... Rc4 {[%clk 0:09:59]} 82. Rh8
{[%clk 0:01:00]} 82... Kc3 {[%clk 0:10:22]} 83. Rh3+ {[%clk 0:00:50]} 83... d3
{[%clk 0:10:49]} 84. Rg3 {[%clk 0:00:35]} 84... Rh4 {[%clk 0:11:03]} 85. Rg1
{[%clk 0:00:31]} 85... Rh2 {[%clk 0:11:24]} 86. Rg7 {[%clk 0:00:31]} 86... Rh1+
{[%clk 0:11:47]} 0-1

[Variant "Standard"]
[Site "Europe Echecs"]

[Event "Championnat du monde jeunes U12"]
[Date "2024.11.26"]
[White "Wijerathna, Vinuka Dihain"]
[Black "Guo, Ethan"]
[WhiteElo "2004"]
[BlackElo "2157"]
[Round "11.9"]
[Result "1/2-1/2"]
[TimeControl "5400+30"]

1. e4 {[%clk 1:30:09]} 1... c5 {[%clk 1:30:59]} 2. Nf3 {[%clk 1:30:21]} 2... d6
{[%clk 1:31:28]} 3. Bb5+ {[%clk 1:30:44]} 3... Nd7 {[%clk 1:31:53]} 4. O-O
{[%clk 1:31:07]} 4... a6 {[%clk 1:32:21]} 5. Bd3 {[%clk 1:31:31]} 5... Ngf6
{[%clk 1:32:43]} 6. Re1 {[%clk 1:31:59]} 6... e6 {[%clk 1:33:05]} 7. c3 {[%clk
1:32:12]} 7... b5 {[%clk 1:33:21]} 8. Bc2 {[%clk 1:32:21]} 8... c4 {[%clk
1:33:46]} 9. a4 {[%clk 1:32:47]} 9... Bb7 {[%clk 1:34:12]} 10. d4 {[%clk
1:33:12]} 10... cxd3 {[%clk 1:34:22]} 11. Qxd3 {[%clk 1:33:40]} 11... Nc5 {[%clk
1:34:20]} 12. Qe2 {[%clk 1:34:07]} 12... bxa4 {[%clk 1:33:28]} 13. e5 {[%clk
1:34:27]} 13... Nfd7 {[%clk 1:25:30]} 14. Nbd2 {[%clk 1:28:48]} 14... dxe5
{[%clk 1:15:47]} 15. Nxe5 {[%clk 1:22:50]} 15... Nxe5 {[%clk 1:14:17]} 16. Qxe5
{[%clk 1:23:14]} 16... Qd7 {[%clk 1:06:42]} 17. Ne4 {[%clk 1:10:41]} 17... Nb3
{[%clk 1:00:51]} 18. Bxb3 {[%clk 0:56:16]} 18... axb3 {[%clk 1:00:36]} 19. Bf4
{[%clk 0:56:36]} 19... Qd5 {[%clk 0:58:46]} 20. Rad1 {[%clk 0:49:03]} 20... Qxe5
{[%clk 0:55:00]} 21. Bxe5 {[%clk 0:49:28]} 21... f6 {[%clk 0:49:00]} 22. Bg3
{[%clk 0:49:17]} 22... Bxe4 {[%clk 0:37:21]} 23. Rxe4 {[%clk 0:49:36]} 23... e5
{[%clk 0:37:31]} 24. f4 {[%clk 0:46:26]} 24... Bc5+ {[%clk 0:37:34]} 25. Kf1
{[%clk 0:46:42]} 25... O-O {[%clk 0:36:33]} 26. fxe5 {[%clk 0:43:43]} 26...
fxe5+ {[%clk 0:36:55]} 27. Ke1 {[%clk 0:44:09]} 27... Rfe8 {[%clk 0:30:46]} 28.
Rd5 {[%clk 0:43:13]} 28... Bf8 {[%clk 0:30:48]} 29. Ke2 {[%clk 0:36:26]} 29...
Rad8 {[%clk 0:26:02]} 30. Rxd8 {[%clk 0:30:17]} 30... Rxd8 {[%clk 0:25:15]} 31.
Ra4 {[%clk 0:30:00]} 31... Be7 {[%clk 0:17:10]} 32. Rxa6 {[%clk 0:27:48]} 32...
Bg5 {[%clk 0:17:35]} 33. Be1 {[%clk 0:28:12]} 33... Bc1 {[%clk 0:18:01]} 34. Rb6
{[%clk 0:28:37]} 34... Bxb2 {[%clk 0:18:12]} 35. Rxb3 {[%clk 0:29:01]} 35... Bc1
{[%clk 0:18:19]} 36. Rb5 {[%clk 0:27:09]} 36... e4 {[%clk 0:17:48]} 37. Rb4
{[%clk 0:27:17]} 37... Re8 {[%clk 0:16:23]} 38. Bd2 {[%clk 0:23:44]} 38... Ba3
{[%clk 0:16:34]} 39. Ra4 {[%clk 0:23:35]} 39... Bd6 {[%clk 0:15:15]} 40. g3
{[%clk 0:22:39]} 40... Kf7 {[%clk 0:14:48]} 41. Ke3 1/2-1/2

[Variant "Standard"]
[Site "Europe Echecs"]

[Event "Championnat du monde jeunes U12"]
[Date "2024.11.26"]
[White "Tatvidze, Davit"]
[Black "Golubovic, Erik"]
[WhiteElo "2024"]
[BlackElo "2147"]
[Round "11.10"]
[Result "1/2-1/2"]
[TimeControl "5400+30"]

1. c4 {[%clk 1:30:56]} 1... Nf6 {[%clk 1:30:49]} 2. Nf3 {[%clk 1:31:17]} 2... e6
{[%clk 1:30:44]} 3. g3 {[%clk 1:31:33]} 3... a6 {[%clk 1:29:54]} 4. Bg2 {[%clk
1:20:21]} 4... b5 {[%clk 1:30:05]} 5. b3 {[%clk 1:12:46]} 5... Bb7 {[%clk
1:30:02]} 6. O-O {[%clk 1:12:42]} 6... c5 {[%clk 1:29:44]} 7. Na3 {[%clk
1:08:38]} 7... b4 {[%clk 1:23:04]} 8. Nc2 {[%clk 1:08:32]} 8... Be7 {[%clk
1:22:27]} 9. Bb2 {[%clk 1:01:59]} 9... O-O {[%clk 1:18:14]} 10. d4 {[%clk
1:01:54]} 10... d6 {[%clk 1:11:53]} 11. dxc5 {[%clk 0:58:57]} 11... dxc5 {[%clk
1:11:10]} 12. Qxd8 {[%clk 0:58:34]} 12... Rxd8 {[%clk 1:09:28]} 13. Rfd1 {[%clk
0:58:29]} 13... Nbd7 {[%clk 1:07:30]} 14. Ne5 {[%clk 0:55:01]} 14... Bxg2 {[%clk
1:04:29]} 15. Kxg2 {[%clk 0:55:28]} 15... Nxe5 {[%clk 1:04:28]} 16. Bxe5 {[%clk
0:54:17]} 16... Ne8 {[%clk 0:58:31]} 17. Ne1 {[%clk 0:51:01]} 17... a5 {[%clk
0:31:21]} 1/2-1/2

[Variant "Standard"]
[Site "Europe Echecs"]

[Event "Championnat du monde jeunes U12"]
[Date "2024.11.26"]
[White "Antipov, Fedor"]
[Black "Petroff, Vlad"]
[WhiteElo "1991"]
[BlackElo "2079"]
[Round "11.11"]
[Result "1-0"]
[TimeControl "5400+30"]

1. e4 {[%clk 1:30:59]} 1... c6 {[%clk 1:30:56]} 2. d4 {[%clk 1:31:25]} 2... d5
{[%clk 1:31:20]} 3. e5 {[%clk 1:31:46]} 3... c5 {[%clk 1:31:35]} 4. dxc5 {[%clk
1:32:10]} 4... e6 {[%clk 1:31:58]} 5. Nf3 {[%clk 1:32:25]} 5... Bxc5 {[%clk
1:32:14]} 6. a3 {[%clk 1:32:32]} 6... a6 {[%clk 1:32:22]} 7. Bd3 {[%clk
1:31:51]} 7... Ne7 {[%clk 1:31:32]} 8. O-O {[%clk 1:30:17]} 8... Nbc6 {[%clk
1:30:21]} 9. b4 {[%clk 1:27:26]} 9... Ba7 {[%clk 1:30:34]} 10. Bb2 {[%clk
1:26:12]} 10... Ng6 {[%clk 1:29:15]} 11. Re1 {[%clk 1:24:26]} 11... O-O {[%clk
1:23:46]} 12. Bf1 {[%clk 1:19:43]} 12... b5 {[%clk 1:13:00]} 13. a4 {[%clk
0:53:31]} 13... bxa4 {[%clk 0:50:04]} 14. Rxa4 {[%clk 0:51:20]} 14... Bd7 {[%clk
0:49:57]} 15. Rxa6 {[%clk 0:39:30]} 15... Nxb4 {[%clk 0:50:00]} 16. Ra1 {[%clk
0:39:01]} 16... Qc7 {[%clk 0:36:20]} 17. Nc3 {[%clk 0:24:00]} 17... Qc5 {[%clk
0:29:14]} 18. Qd2 {[%clk 0:22:56]} 18... Rfc8 {[%clk 0:29:04]} 19. h4 {[%clk
0:20:46]} 19... h6 {[%clk 0:27:27]} 20. h5 {[%clk 0:20:38]} 20... Ne7 {[%clk
0:27:43]} 21. Ba3 {[%clk 0:19:32]} 21... Nf5 {[%clk 0:21:45]} 22. Nd1 {[%clk
0:17:33]} 22... Qxc2 {[%clk 0:10:43]} 23. Bxb4 {[%clk 0:17:38]} 23... Qb3 {[%clk
0:10:51]} 24. Bd3 {[%clk 0:14:59]} 24... Nd4 {[%clk 0:09:47]} 25. Nxd4 {[%clk
0:14:42]} 25... Bxd4 {[%clk 0:10:06]} 26. Rb1 {[%clk 0:13:59]} 26... Qa4 {[%clk
0:09:29]} 27. Bd6 {[%clk 0:13:02]} 27... Qa7 {[%clk 0:05:37]} 28. Rb4 {[%clk
0:13:02]} 28... Bb6 {[%clk 0:05:23]} 29. Rg4 {[%clk 0:13:10]} 29... Kh8 {[%clk
0:05:46]} 30. Qf4 {[%clk 0:13:01]} 30... Ba4 {[%clk 0:05:52]} 31. Nb2 {[%clk
0:08:21]} 31... Bc2 {[%clk 0:05:25]} 32. Qg3 {[%clk 0:07:05]} 32... Bxd3 {[%clk
0:04:37]} 33. Nxd3 {[%clk 0:07:00]} 33... Rg8 {[%clk 0:04:56]} 34. Rc1 {[%clk
0:06:27]} 34... Qa2 {[%clk 0:04:40]} 35. Rb4 {[%clk 0:05:26]} 35... Ba7 {[%clk
0:03:59]} 36. Rb7 {[%clk 0:05:13]} 36... Qd2 {[%clk 0:03:54]} 37. Rf1 {[%clk
0:04:22]} 37... Bd4 {[%clk 0:03:28]} 38. Rxf7 {[%clk 0:04:37]} 38... Rac8 {[%clk
0:03:41]} 39. Nf4 {[%clk 0:04:19]} 39... Rc1 {[%clk 0:03:06]} 40. Rxc1 {[%clk
0:04:02]} 40... Qxc1+ {[%clk 0:03:33]} 41. Kh2 {[%clk 0:04:25]} 41... Qd1 {[%clk
0:03:37]} 42. Ng6+ {[%clk 0:04:40]} 42... Kh7 {[%clk 0:04:00]} 43. Nf8+ {[%clk
0:05:02]} 43... Kh8 {[%clk 0:04:25]} 44. Qg6 {[%clk 0:05:10]} 44... Bxe5+ {[%clk
0:04:30]} 45. Bxe5 {[%clk 0:05:32]} 45... Rxf8 {[%clk 0:04:52]} 46. Qxg7# {[%clk
0:05:54]} 1-0

[Variant "Standard"]
[Site "Europe Echecs"]

[Event "Championnat du monde jeunes U12"]
[Date "2024.11.26"]
[White "Batbaatar, Baatar"]
[Black "Zhang, Haoxuan"]
[WhiteElo "2030"]
[BlackElo "1932"]
[Round "11.12"]
[Result "1-0"]
[TimeControl "5400+30"]

1. e4 {[%clk 1:30:57]} 1... e6 {[%clk 1:30:49]} 2. d4 {[%clk 1:31:01]} 2... d5
{[%clk 1:30:46]} 3. Nc3 {[%clk 1:30:02]} 3... Nf6 {[%clk 1:29:54]} 4. e5 {[%clk
1:30:26]} 4... Nfd7 {[%clk 1:30:19]} 5. f4 {[%clk 1:30:51]} 5... c5 {[%clk
1:30:37]} 6. Nf3 {[%clk 1:31:14]} 6... Nc6 {[%clk 1:30:25]} 7. Be3 {[%clk
1:31:38]} 7... a6 {[%clk 1:29:31]} 8. Qd2 {[%clk 1:30:07]} 8... Qa5 {[%clk
1:27:49]} 9. Bd3 {[%clk 1:23:03]} 9... b5 {[%clk 1:21:04]} 10. dxc5 {[%clk
1:22:06]} 10... Bxc5 {[%clk 1:19:45]} 11. Bxc5 {[%clk 1:21:20]} 11... Nxc5
{[%clk 1:13:52]} 12. Ne2 {[%clk 1:21:16]} 12... Qxd2+ {[%clk 1:09:53]} 13. Kxd2
{[%clk 1:21:25]} 13... Bb7 {[%clk 1:06:45]} 14. Ned4 {[%clk 1:21:44]} 14... Ne7
{[%clk 1:00:09]} 15. Ke3 {[%clk 1:17:42]} 15... h5 {[%clk 0:58:23]} 16. f5
{[%clk 1:11:41]} 16... Nxd3 {[%clk 0:54:19]} 17. cxd3 {[%clk 1:08:38]} 17...
Nxf5+ {[%clk 0:54:35]} 18. Nxf5 {[%clk 1:09:02]} 18... exf5 {[%clk 0:54:58]} 19.
Nd4 {[%clk 1:06:22]} 19... g6 {[%clk 0:50:19]} 20. Rac1 {[%clk 1:00:08]} 20...
Kd7 {[%clk 0:47:05]} 21. Kf4 {[%clk 0:59:41]} 21... Rac8 {[%clk 0:46:37]} 22.
Kg5 {[%clk 0:59:08]} 22... Ke7 {[%clk 0:46:41]} 23. h4 {[%clk 0:57:16]} 23... b4
{[%clk 0:45:03]} 24. a3 {[%clk 0:54:52]} 24... bxa3 {[%clk 0:36:54]} 25. bxa3
{[%clk 0:54:48]} 25... Ba8 {[%clk 0:34:02]} 26. g3 {[%clk 0:51:39]} 26... a5
{[%clk 0:30:42]} 27. a4 {[%clk 0:48:04]} 27... Rhd8 {[%clk 0:28:11]} 28. Rhd1
{[%clk 0:45:41]} 28... Bb7 {[%clk 0:26:33]} 29. Rb1 {[%clk 0:39:26]} 29... Bc6
{[%clk 0:25:11]} 30. Rb6 {[%clk 0:33:19]} 30... Bxa4 {[%clk 0:20:58]} 31. Ra1
{[%clk 0:33:20]} 31... Be8 {[%clk 0:12:09]} 32. Rxa5 {[%clk 0:30:24]} 32... Rc7
{[%clk 0:11:45]} 33. Kh6 {[%clk 0:28:12]} 33... Bd7 {[%clk 0:08:39]} 34. Rxd5
{[%clk 0:27:36]} 34... Ra8 {[%clk 0:08:15]} 35. Kg7 {[%clk 0:26:22]} 35... Ra1
{[%clk 0:06:57]} 36. Rf6 {[%clk 0:25:39]} 36... Be6 {[%clk 0:04:12]} 37. Nxe6
{[%clk 0:24:52]} 1-0

[Variant "Standard"]
[Site "Europe Echecs"]